bitfinex/quotes_SOLUSD_20251125
["timestamp","ask_amount","ask_price","bid_price","bid_amount"]
[1764081337052,8.80994492,136.02,135.98,0.72]
[1764081337571,8.80994492,136.0,135.95,26.73964175]
[1764081337788,3.34,136.0,135.95,27.45964175]
[1764081337968,3.34,136.0,135.96,0.72]
[1764081338289,3.34,136.0,135.96,18.50588219]
[1764081338463,13.77077775,136.08,135.99,26.73964175]
[1764081338787,3.34,136.08,136.04,10.43077775]
[1764081338979,3.34,136.08,136.02,16.308864]
[1764081338980,8.80994492,136.06,136.02,16.308864]
[1764081339166,3.34,136.08,136.02,0.72]
[1764081339371,10.43077775,136.12,136.06,10.43077775]
[1764081339583,3.34,136.12,136.07,10.43077775]
[1764081339960,3.34,136.12,136.07,11.15077775]
[1764081340160,3.34,136.12,136.08,7.34861845]
[1764081340360,3.34,136.12,136.07,7.34901329]
[1764081340361,14.39077775,136.12,136.07,7.34901329]
[1764081340587,13.77077775,136.12,136.07,8.06901329]
[1764081341099,8.80994492,136.11,136.07,26.44190134]
[1764081341265,13.77077775,136.12,136.08,0.72]
[1764081341266,3.34,136.12,136.08,0.72]
[1764081341458,8.80994492,136.09,136.04,0.72]
[1764081341691,8.80994492,136.09,136.04,18.50131201]
[1764081342073,22.58072267,136.08,136.03,16.308864]
[1764081342281,8.80994492,136.06,136.0,0.72]
[1764081342506,19.24072267,136.04,135.98,11.15077775]
[1764081342678,10.43077775,136.03,135.98,0.72]
[1764081343096,22.58072267,136.04,135.98,0.72]
[1764081343594,22.58072267,136.04,135.98,11.15077775]
[1764081344096,22.58072267,136.04,135.98,0.72]
[1764081344298,12.14994492,136.04,135.99,18.50425962]
[1764081344502,3.34,136.04,136.0,10.43077775]
[1764081344677,3.34,136.04,136.0,11.15077775]
[1764081344995,3.34,136.07,136.03,10.43077775]
[1764081345183,3.34,136.07,136.02,26.73964175]
[1764081345379,18.36700322,136.12,136.02,26.73964175]
[1764081345380,0.62,136.13,136.05,10.43077775]
[1764081345587,0.62,136.13,136.03,0.72]
[1764081345588,3.34,136.16,136.1,10.43077775]
[1764081345817,3.34,136.16,136.09,11.15077775]
[1764081345818,13.77077775,136.16,136.09,11.15077775]
[1764081345988,8.80994492,136.15,136.09,11.15077775]
[1764081346311,13.77077775,136.16,136.1,7.34753857]
[1764081346605,3.34,136.16,136.11,10.43077775]
[1764081346777,3.34,136.16,136.12,10.43077775]
[1764081346977,3.34,136.16,136.12,11.15077775]
[1764081347170,3.34,136.16,136.13,0.72]
[1764081347380,3.44,136.19,136.13,27.45964175]
[1764081347599,3.44,136.19,136.14,11.15077775]
[1764081347800,13.87077775,136.19,136.13,26.73964175]
[1764081347995,10.43077775,136.18,136.12,16.308864]
[1764081348299,26.58563118,136.15,136.08,11.15077775]
[1764081348492,19.24072267,136.13,136.05,8.06988686]
[1764081348696,10.43077775,136.12,136.06,10.43077775]
[1764081348873,19.24072267,136.13,136.07,10.43077775]
[1764081349072,8.80994492,136.13,136.06,27.45964175]
[1764081349289,19.24072267,136.13,136.07,11.15077775]
[1764081349614,8.80994492,136.1,136.0,7.35254472]
[1764081349775,8.80994492,136.07,136.0,0.72]
[1764081349973,8.80994492,136.06,135.98,16.308864]
[1764081350173,10.43077775,136.01,135.97,8.0745635]
[1764081350579,10.43077775,136.01,135.98,0.72]
[1764081350580,3.34,136.01,135.98,0.72]
[1764081350887,8.80994492,136.04,135.98,0.72]
[1764081351092,19.24072267,135.99,135.92,26.47035549]
[1764081351284,10.43077775,135.98,135.92,8.07726898]
[1764081351483,10.43077775,135.97,135.92,0.72]
[1764081351703,10.43077775,135.97,135.92,17.028864]
[1764081352098,8.80994492,136.02,135.96,10.43077775]
[1764081352282,10.43077775,136.01,135.96,25.74286554]
[1764081352488,19.24072267,136.02,135.96,25.74286554]
[1764081352695,14.81878604,136.02,135.96,25.74286554]
[1764081353093,6.00884112,136.01,135.96,7.35510444]
[1764081353610,3.96,136.03,135.97,6.72884112]
[1764081353611,9.34884112,136.03,135.97,6.72884112]
[1764081353911,8.80994492,136.04,135.99,6.00884112]
[1764081354113,9.34884112,136.05,135.99,6.00884112]
[1764081354403,3.34,136.1,136.04,6.00884112]
[1764081354610,9.34884112,136.1,136.02,25.73151007]
[1764081354899,6.00884112,136.07,136.02,7.35186002]
[1764081355100,6.00884112,136.07,136.01,14.08112224]
[1764081355304,6.00884112,136.06,136.01,8.07228112]
[1764081355485,6.00884112,136.06,136.0,23.6616739]
[1764081356305,9.34884112,136.05,136.0,69.6528099]
[1764081356487,8.80994492,136.04,136.0,7.3528099]
[1764081356685,8.80994492,136.04,136.01,0.72]
[1764081357091,8.80994492,136.04,136.0,25.73516284]
[1764081357292,9.34884112,136.05,136.0,25.73516284]
[1764081357498,3.34,136.05,136.01,6.72884112]
[1764081357810,6.00884112,136.11,136.04,6.00884112]
[1764081358005,3.34,136.11,136.05,6.00884112]
[1764081358188,14.81878604,136.1,136.04,6.70884112]
[1764081358391,14.81878604,136.1,136.05,7.35023888]
[1764081358599,6.00884112,136.09,136.05,7.35023888]
[1764081358801,14.81878604,136.1,136.05,7.35023888]
[1764081359187,8.80994492,136.1,136.05,25.72583608]
[1764081359389,9.34884112,136.11,136.06,0.7]
[1764081359601,3.34,136.11,136.06,6.70884112]
[1764081359793,3.34,136.11,136.06,23.01770512]
[1764081359995,3.34,136.11,136.07,6.70884112]
[1764081360317,6.00884112,136.15,136.1,25.716385]
[1764081360488,6.00884112,136.12,136.09,7.34805039]
[1764081360811,6.00884112,136.14,136.09,8.04805039]
[1764081361110,8.80994492,136.14,136.09,26.41824658]
[1764081361309,3.34,136.16,136.12,22.31770512]
[1764081361516,3.34,136.16,136.12,16.308864]
[1764081361716,6.00884112,136.13,136.07,17.008864]
[1764081361914,6.00884112,136.12,136.07,24.35793543]
[1764081362098,6.00884112,136.14,136.08,0.7]
[1764081362429,9.34884112,136.16,136.09,31.72711578]
[1764081362713,9.34884112,136.16,136.08,0.7]
[1764081362714,3.34,136.16,136.12,16.308864]
[1764081363093,3.34,136.16,136.12,0.7]
[1764081363508,9.34884112,136.16,136.12,0.7]
[1764081363891,7.34384197,136.17,136.12,0.7]
[1764081363892,6.10884112,136.19,136.13,6.00884112]
[1764081364100,14.91878604,136.19,136.13,6.00884112]
[1764081364295,0.1,136.19,136.14,6.70884112]
[1764081364497,0.1,136.23,136.18,6.00884112]
[1764081364702,0.1,136.23,136.19,6.00884112]
[1764081364897,0.1,136.23,136.19,0.7]
[1764081365313,0.1,136.23,136.15,29.04694086]
[1764081365314,6.00884112,136.21,136.16,17.008864]
[1764081365510,6.00884112,136.17,136.12,17.008864]
[1764081365816,6.00884112,136.17,136.13,16.308864]
[1764081365990,6.00884112,136.19,136.14,16.308864]
[1764081366185,23.74990346,136.23,136.14,20.348864]
[1764081366186,0.1,136.23,136.14,20.348864]
[1764081366437,0.1,136.23,136.18,25.70127771]
[1764081366715,0.1,136.23,136.21,6.00884112]
[1764081366916,0.1,136.23,136.21,16.308864]
[1764081367910,0.1,136.23,136.19,0.7]
[1764081368111,6.00884112,136.22,136.17,16.308864]
[1764081368323,6.00884112,136.22,136.17,17.008864]
[1764081368527,6.00884112,136.22,136.17,16.308864]
[1764081368842,6.00884112,136.18,136.14,8.04522154]
[1764081369016,6.00884112,136.17,136.12,18.36563822]
[1764081369218,6.00884112,136.17,136.12,7.34593508]
[1764081369539,6.00884112,136.16,136.12,0.7]
[1764081370312,6.00884112,136.15,136.1,7.34717253]
[1764081370509,8.80994492,136.14,136.06,0.7]
[1764081370711,6.00884112,136.1,136.06,0.7]
[1764081370929,6.00884112,136.1,135.97,100.0]
[1764081370930,8.80994492,136.1,136.02,18.37871854]
[1764081371125,6.00884112,136.09,136.03,0.7]
[1764081371312,6.00884112,136.08,136.03,0.7]
[1764081371514,6.00884112,136.04,135.98,19.08397727]
[1764081371734,6.00884112,136.03,135.98,0.7]
[1764081372046,6.00884112,136.03,135.96,6.00884112]
[1764081372208,6.00884112,136.02,135.98,0.7]
[1764081372541,6.00884112,136.02,135.97,16.308864]
[1764081372542,6.00884112,136.0,135.95,8.05544666]
[1764081372915,8.80994492,136.03,135.96,6.70884112]
[1764081373105,14.81878604,136.03,135.97,0.7]
[1764081373302,6.00884112,136.02,135.97,0.7]
[1764081373506,8.80994492,136.03,135.95,25.7445603]
[1764081373507,6.00884112,136.01,135.95,25.7445603]
[1764081373814,36.7404543,136.09,135.95,25.7445603]
[1764081373815,6.00884112,136.02,135.96,0.7]
[1764081374324,8.80994492,136.04,135.96,6.70884112]
[1764081374526,6.00884112,136.03,135.98,7.35402265]
[1764081374711,9.34884112,136.05,135.98,84.82689764]
[1764081374908,9.34884112,136.08,136.01,22.31770512]
[1764081375136,3.34,136.08,136.03,6.00884112]
[1764081375437,3.34,136.08,136.04,6.00884112]
[1764081375638,9.34884112,136.11,136.05,6.00884112]
[1764081375835,6.00884112,136.09,136.02,17.008864]
[1764081376036,6.00884112,136.08,136.03,16.308864]
[1764081376238,8.80994492,136.07,136.03,16.308864]
[1764081376610,6.00884112,136.09,136.04,8.05077918]
[1764081376932,8.80994492,136.1,136.04,26.42772713]
[1764081377129,14.81878604,136.1,136.04,32.43656825]
[1764081377327,8.80994492,136.1,136.04,32.43656825]
[1764081377927,8.80994492,136.1,136.05,0.7]
[1764081378240,6.00884112,136.09,136.04,7.35077918]
[1764081378438,8.80994492,136.1,136.04,32.43656825]
[1764081378638,8.80994492,136.1,136.02,16.308864]
[1764081378639,6.00884112,136.07,136.02,16.308864]
[1764081379010,3.34,136.11,136.03,0.7]
[1764081379316,6.00884112,136.09,136.03,0.7]
[1764081379519,8.80994492,136.1,136.05,22.31770512]
[1764081379731,8.80994492,136.1,136.05,16.308864]
[1764081380039,3.34,136.11,136.06,6.70884112]
[1764081380247,9.34884112,136.11,136.06,0.7]
[1764081380442,14.81878604,136.1,136.05,16.308864]
[1764081380743,14.81878604,136.1,136.06,7.34969866]
[1764081380914,14.81878604,136.1,136.06,25.72394531]
[1764081381222,6.00884112,136.09,136.06,7.34969866]
[1764081381539,8.80994492,136.06,136.0,6.00884112]
[1764081381742,8.80994492,136.06,136.01,6.70884112]
[1764081382121,8.80994492,136.06,136.02,0.7]
[1764081382446,8.80994492,136.06,135.91,36.7870955]
[1764081382447,8.80994492,136.02,135.95,6.70884112]
[1764081382661,6.00884112,135.99,135.93,6.70884112]
[1764081382940,6.00884112,135.99,135.94,42.05551693]
[1764081383318,6.00884112,135.98,135.94,23.66505055]
[1764081383839,3.34,136.02,135.97,6.00884112]
[1764081384138,6.00884112,136.0,135.94,25.74665293]
[1764081384315,6.00884112,135.99,135.94,7.35618655]
[1764081384647,6.00884112,135.98,135.94,7.35618655]
[1764081385034,9.48994492,136.01,135.92,25.06120495]
[1764081385035,14.81878604,135.97,135.92,25.75003885]
[1764081385350,6.00884112,135.99,135.93,6.66884112]
[1764081385715,6.00884112,135.99,135.93,0.66]
[1764081385915,6.00884112,135.99,135.93,6.66884112]
[1764081386536,6.00884112,135.99,135.93,0.66]
[1764081386864,6.00884112,135.97,135.92,42.05890285]
[1764081387070,14.81878604,135.98,135.92,42.05890285]
[1764081387265,14.81878604,135.98,135.92,48.72774397]
[1764081387742,3.34,135.99,135.94,6.00884112]
[1764081387934,6.00884112,135.97,135.92,23.6657304]
[1764081388135,6.00884112,135.97,135.92,7.3568664]
[1764081388356,6.00884112,135.97,135.92,8.0168664]
[1764081388563,6.00884112,135.93,135.86,0.66]
[1764081388739,6.00884112,135.92,135.86,0.66]
[1764081388938,6.00884112,135.92,135.87,7.35997644]
[1764081389135,9.34884112,135.94,135.88,6.00884112]
[1764081389340,3.34,135.98,135.92,6.00884112]
[1764081389555,3.34,135.98,135.94,6.00884112]
[1764081389739,6.00884112,136.03,135.97,16.308864]
[1764081389936,9.34884112,136.03,135.97,22.97770512]
[1764081390273,9.34884112,136.03,135.92,9.34884112]
[1764081390274,6.00884112,136.02,135.96,0.66]
[1764081390460,14.81878604,136.0,135.94,6.00884112]
[1764081390638,6.00884112,136.01,135.94,6.00884112]
[1764081390838,8.80994492,136.0,135.96,7.35510444]
[1764081391038,8.80994492,136.0,135.96,8.01510444]
[1764081391368,8.80994492,136.0,135.96,26.40286554]
[1764081391578,15.49878604,136.02,135.97,0.66]
[1764081391579,8.80994492,136.02,135.97,0.66]
[1764081391863,9.34884112,136.03,135.97,0.66]
[1764081392062,14.81878604,136.0,135.95,7.35561916]
[1764081392370,6.00884112,135.99,135.94,7.35605554]
[1764081392553,6.00884112,135.99,135.94,23.66491954]
[1764081392864,16.308864,136.04,135.91,3.34]
[1764081392865,9.34884112,135.98,135.92,6.00884112]
[1764081393065,8.80994492,135.98,135.94,0.66]
[1764081393370,3.34,135.99,135.94,0.66]
[1764081393865,14.81878604,135.95,135.91,23.66667431]
[1764081394072,14.81878604,135.95,135.89,7.35886353]
[1764081394073,15.49878604,135.95,135.89,7.35886353]
[1764081394365,6.00884112,135.95,135.89,24.32772753]
[1764081394583,14.81878604,135.93,135.89,7.35886353]
[1764081394738,15.49878604,135.93,135.88,7.35937398]
[1764081394939,15.49878604,135.93,135.86,0.66]
[1764081394940,6.00884112,135.92,135.86,30.33803936]
[1764081395339,6.00884112,135.9,135.84,13.37036654]
[1764081395574,14.81878604,135.91,135.85,16.968864]
[1764081395749,8.80994492,135.91,135.86,6.00884112]
[1764081395944,8.80994492,135.91,135.86,6.66884112]
[1764081396159,18.38439285,135.99,135.88,6.00884112]
[1764081396388,14.81878604,135.95,135.88,6.00884112]
[1764081396560,6.00884112,135.94,135.89,0.66]
[1764081397062,14.81878604,135.95,135.9,25.75423104]
[1764081397272,14.81878604,135.97,135.9,48.07193616]
[1764081397584,3.34,135.98,135.92,6.00884112]
[1764081397753,3.34,135.98,135.95,6.00884112]
[1764081397960,0.68,136.07,135.97,6.00884112]
[1764081398163,6.00884112,136.06,136.0,6.00884112]
[1764081398390,6.00884112,136.02,135.96,0.66]
[1764081398578,6.00884112,136.0,135.96,0.66]
[1764081398884,6.00884112,136.0,135.94,16.968864]
[1764081399069,14.81878604,136.01,135.95,32.41360021]
[1764081399261,8.80994492,135.99,135.95,25.74475909]
[1764081399589,14.81878604,135.99,135.94,23.66483856]
[1764081399876,14.81878604,135.99,135.94,7.35597456]
[1764081399877,14.81878604,135.98,135.94,7.35597456]
[1764081400567,3.36,135.98,135.91,6.00884112]
[1764081400787,14.81878604,135.97,135.91,0.66]
[1764081400949,3.36,135.98,135.92,6.66884112]
[1764081401263,3.36,135.98,135.93,25.74854703]
[1764081401457,3.36,135.98,135.94,0.66]
[1764081401980,3.36,136.03,135.96,6.00884112]
[1764081402283,8.80994492,136.01,135.96,6.00884112]
[1764081402471,6.00884112,135.99,135.95,16.308864]
[1764081402666,6.00884112,135.99,135.93,42.05741103]
[1764081403594,6.68884112,136.0,135.93,48.06625215]
[1764081403779,8.80994492,135.98,135.93,48.06625215]
[1764081403963,14.81878604,135.98,135.93,23.66559172]
[1764081404162,6.00884112,135.97,135.93,62.3]
[1764081404379,12.16994492,135.98,135.93,69.65665902]
[1764081404586,18.85878604,135.98,135.93,69.65665902]
[1764081404766,8.80994492,136.02,135.96,6.00884112]
[1764081404966,14.81878604,136.02,135.96,6.00884112]
[1764081405165,4.04,136.03,135.97,6.66884112]
[1764081405166,3.36,136.03,135.97,6.66884112]
[1764081405480,3.36,136.03,135.98,48.05678439]
[1764081405684,3.36,136.03,136.0,6.00884112]
[1764081406070,6.00884112,136.07,136.01,0.66]
[1764081406399,8.80994492,136.06,136.01,22.97770512]
[1764081406568,3.36,136.08,136.02,6.00884112]
[1764081406887,3.36,136.08,136.02,6.66884112]
[1764081407475,3.36,136.08,136.02,7.35176685]
[1764081407476,14.81878604,136.07,136.02,7.35176685]
[1764081407788,14.81878604,136.07,136.0,16.308864]
[1764081407789,8.80994492,136.04,136.0,16.308864]
[1764081407986,6.00884112,136.04,135.97,6.00884112]
[1764081408188,6.00884112,136.04,135.98,6.00884112]
[1764081408378,8.80994492,136.05,135.99,6.66884112]
[1764081408690,14.81878604,136.05,135.99,6.66884112]
[1764081408876,14.81878604,136.05,135.99,0.66]
[1764081409062,6.00884112,136.04,135.97,6.66884112]
[1764081409460,8.80994492,136.02,135.95,7.35564545]
[1764081409666,8.80994492,135.99,135.95,7.35564545]
[1764081409893,8.80994492,135.99,135.95,25.74475909]
[1764081410092,8.80994492,135.99,135.95,8.01564545]
[1764081410273,6.00884112,135.98,135.91,0.66]
[1764081410479,14.81878604,135.99,135.92,6.66884112]
[1764081410791,8.80994492,135.99,135.93,6.00884112]
[1764081410987,8.80994492,135.99,135.93,6.66884112]
[1764081411182,8.80994492,135.99,135.94,0.66]
[1764081411493,14.81878604,135.99,135.93,34.70021807]
[1764081411698,14.81878604,135.99,135.94,7.35608812]
[1764081411897,14.81878604,135.99,135.94,25.7465545]
[1764081412197,8.80994492,135.99,135.94,26.4065545]
[1764081412566,8.80994492,135.99,135.94,25.7465545]
[1764081412768,10.46494207,136.0,135.95,0.66]
[1764081412964,8.80994492,136.0,135.95,0.66]
[1764081413199,19.27488699,136.0,135.95,0.66]
[1764081413696,10.46494207,136.01,135.96,25.74286554]
[1764081413881,19.27488699,136.01,135.96,7.35510444]
[1764081414085,8.80994492,135.99,135.94,7.35606952]
[1764081414287,19.27488699,135.99,135.94,7.35606952]
[1764081414493,8.80994492,135.99,135.94,8.07606952]
[1764081415074,8.80994492,135.99,135.94,7.35606952]
[1764081415398,8.80994492,136.0,135.95,0.72]
[1764081415578,8.80994492,136.0,135.96,7.35510444]
[1764081415780,19.96488699,136.0,135.95,7.35548372]
[1764081415991,19.96488699,136.0,135.95,26.46459736]
[1764081416178,8.80994492,136.0,135.95,8.07548372]
[1764081416377,19.27488699,136.0,135.95,8.07548372]
[1764081416704,8.80994492,136.02,135.97,10.46494207]
[1764081416913,8.80994492,136.02,135.97,62.3]
[1764081417111,8.80994492,136.02,135.98,0.72]
[1764081417616,8.80994492,136.02,135.98,25.73907927]
[1764081417776,8.80994492,136.02,135.97,69.65432654]
[1764081417978,8.80994492,136.02,135.97,70.37432654]
[1764081418276,8.80994492,136.02,135.97,88.7607353]
[1764081418499,19.92488699,136.02,135.97,88.0407353]
[1764081418704,19.92488699,136.02,135.97,70.32432654]
[1764081419012,8.80994492,136.0,135.96,7.35497558]
[1764081419704,10.46494207,136.02,135.97,0.67]
[1764081419888,8.80994492,136.01,135.97,0.67]
[1764081420310,30.11380607,136.03,135.97,0.67]
[1764081420485,19.648864,136.03,135.97,11.13494207]
[1764081420679,8.80994492,136.02,135.97,11.13494207]
[1764081420880,0.65,136.09,136.01,10.46494207]
[1764081421084,8.80994492,136.03,135.98,79.278864]
[1764081421306,8.80994492,136.03,135.98,16.308864]
[1764081421480,3.34,136.04,136.01,10.46494207]
[1764081421677,8.80994492,136.07,136.03,7.35131956]
[1764081421919,12.14994492,136.07,136.03,7.35131956]
[1764081422115,11.11494207,136.06,135.99,10.46494207]
[1764081422409,19.27488699,136.02,135.97,8.0245635]
[1764081422589,22.61488699,136.02,135.97,8.0245635]
[1764081422786,22.61488699,136.02,135.93,36.78266519]
[1764081422787,19.27488699,135.98,135.9,0.67]
[1764081423097,10.46494207,135.93,135.87,0.67]
[1764081423304,16.308864,135.99,135.9,10.46494207]
[1764081423478,10.46494207,135.97,135.91,0.67]
[1764081423676,8.80994492,135.97,135.92,7.35726898]
[1764081423981,19.27488699,135.97,135.92,26.42044143]
[1764081424393,8.80994492,135.95,135.85,7.36105999]
[1764081424584,10.46494207,135.9,135.85,8.03105999]
[1764081424792,10.46494207,135.9,135.85,24.33992399]
[1764081425104,3.34,135.9,135.86,0.67]
[1764081425487,3.34,135.9,135.85,7.36105999]
[1764081425692,12.14994492,135.9,135.87,7.35997644]
[1764081426200,19.27488699,135.89,135.83,17.078864]
[1764081426384,8.80994492,135.87,135.83,0.1]
[1764081426579,10.46494207,135.86,135.83,7.46193173]
[1764081426782,3.34,135.86,135.83,7.46193173]
[1764081427002,16.308864,135.9,135.84,0.67]
[1764081427218,16.308864,135.9,135.83,7.46193173]
[1764081427219,8.80994492,135.86,135.83,0.1]
[1764081428976,3.34,135.85,135.83,0.1]
[1764081429191,8.80994492,135.84,135.83,0.1]
[1764081429383,19.92488699,135.84,135.83,0.1]
[1764081429793,16.308864,135.87,135.83,0.77]
[1764081429794,3.34,135.87,135.83,0.77]
[1764081430000,13.80494207,135.87,135.83,0.1]
[1764081430197,3.34,135.86,135.83,0.1]
[1764081430521,8.80994492,135.9,135.85,10.46494207]
[1764081430814,8.80994492,135.9,135.83,16.408864]
[1764081430815,10.46494207,135.88,135.83,0.1]
[1764081431014,19.27488699,135.86,135.83,0.1]
[1764081432282,10.46494207,135.85,135.83,0.1]
[1764081432587,3.34,135.87,135.83,0.1]
[1764081432784,3.34,135.87,135.83,0.77]
[1764081433009,0.65,135.89,135.85,10.46494207]
[1764081433010,3.34,135.89,135.85,10.46494207]
[1764081433181,3.34,135.89,135.84,10.46494207]
[1764081433590,3.34,135.89,135.85,0.67]
[1764081433806,3.34,135.89,135.86,7.36051818]
[1764081433981,3.34,135.89,135.86,25.76181363]
[1764081434185,3.34,135.89,135.87,0.67]
[1764081434403,3.34,135.91,135.87,0.67]
[1764081434602,3.34,135.91,135.87,11.13494207]
[1764081434805,3.34,135.91,135.88,0.67]
[1764081434989,3.34,135.91,135.86,36.2267557]
[1764081434990,3.34,135.91,135.86,17.82546025]
[1764081435189,12.14994492,135.91,135.87,0.67]
[1764081435393,10.46494207,135.88,135.84,7.36160188]
[1764081435592,8.80994492,135.85,135.83,0.1]
[1764081435896,22.61488699,135.87,135.83,0.77]
[1764081436208,8.80994492,135.86,135.83,0.1]
[1764081436394,3.34,135.87,135.83,0.77]
[1764081436712,3.34,135.87,135.83,11.23494207]
[1764081436893,8.80994492,135.92,135.85,16.308864]
[1764081437094,19.27488699,135.9,135.85,16.308864]
[1764081437296,10.46494207,135.89,135.85,16.308864]
[1764081437484,13.80494207,135.89,135.84,0.67]
[1764081437889,3.34,135.89,135.85,36.22865204]
[1764081438191,3.34,135.89,135.85,25.76370997]
[1764081438396,3.34,135.89,135.85,36.22865204]
[1764081438711,3.34,135.92,135.87,10.46494207]
[1764081439080,8.80994492,135.93,135.88,11.13494207]
[1764081439291,22.61488699,135.94,135.88,11.13494207]
[1764081440099,12.14994492,135.94,135.89,25.75612627]
[1764081440300,12.14994492,135.94,135.89,36.89106834]
[1764081440301,3.34,135.94,135.89,36.89106834]
[1764081440504,3.34,135.94,135.89,8.02889322]
[1764081440819,8.80994492,135.93,135.89,8.02889322]
[1764081441117,10.46494207,135.92,135.87,7.35990341]
[1764081441419,19.92488699,135.93,135.87,18.49484548]
[1764081441720,9.45994492,135.93,135.87,36.8947866]
[1764081441920,8.80994492,135.93,135.88,11.13494207]
[1764081442088,10.46494207,135.98,135.92,10.46494207]
[1764081442290,0.65,135.99,135.93,26.77380607]
[1764081442487,3.34,135.98,135.95,10.46494207]
[1764081442997,3.34,135.98,135.95,11.13494207]
[1764081443198,10.46494207,136.03,135.96,0.67]
[1764081443526,14.46494207,136.03,135.96,11.13494207]
[1764081443728,3.34,136.03,136.0,10.46494207]
[1764081444016,3.34,136.03,135.96,0.67]
[1764081444017,10.46494207,136.02,135.96,16.308864]
[1764081444228,19.27488699,136.0,135.96,7.35468464]
[1764081444516,8.80994492,135.98,135.96,7.35468464]
[1764081444710,19.27488699,135.98,135.92,0.67]
[1764081444894,19.27488699,135.96,135.92,16.308864]
[1764081445099,10.46494207,135.95,135.89,11.13494207]
[1764081445298,19.27488699,135.94,135.89,16.978864]
[1764081445492,19.27488699,135.94,135.89,0.67]
[1764081445692,8.80994492,135.94,135.89,11.13494207]
[1764081445890,8.80994492,135.94,135.9,10.46494207]
[1764081446204,8.80994492,135.94,135.91,7.35781031]
[1764081446605,3.34,135.95,135.91,8.02781031]
[1764081446912,3.34,135.95,135.92,0.67]
[1764081447490,3.34,135.95,135.91,7.35781031]
[1764081447714,13.80494207,135.95,135.91,7.35781031]
[1764081447908,13.80494207,135.95,135.91,25.75233609]
[1764081448295,10.46494207,135.94,135.91,18.39452578]
[1764081448495,10.46494207,135.94,135.9,7.35835172]
[1764081448689,10.46494207,135.94,135.9,25.75423104]
[1764081448907,8.80994492,135.94,135.9,8.02835172]
[1764081449086,8.80994492,135.94,135.9,26.42423104]
[1764081449288,3.34,135.95,135.91,0.67]
[1764081449613,12.14994492,135.98,135.92,10.46494207]
[1764081449815,3.34,135.98,135.93,11.13494207]
[1764081450118,19.27488699,135.97,135.93,0.67]
[1764081450410,8.80994492,135.97,135.93,8.02634356]
[1764081450611,8.80994492,135.97,135.93,26.41816287]
[1764081450911,19.93488699,135.97,135.93,7.35634356]
[1764081451099,8.80994492,135.95,135.93,7.35634356]
[1764081451301,8.80994492,135.93,135.89,7.35889322]
[1764081451701,3.34,135.94,135.9,11.13494207]
[1764081451888,3.34,135.94,135.91,11.13494207]
[1764081452092,3.34,135.94,135.91,0.67]
[1764081452294,3.34,135.94,135.92,7.35726898]
[1764081452791,8.80994492,135.96,135.93,0.67]
[1764081453008,8.80994492,135.96,135.92,7.35726898]
[1764081453209,8.80994492,135.96,135.92,26.42044143]
[1764081453513,3.34,135.97,135.93,11.13494207]
[1764081453902,8.80994492,135.96,135.92,25.75044143]
[1764081454092,8.80994492,135.96,135.92,26.42044143]
[1764081454293,8.80994492,135.96,135.92,0.67]
[1764081454497,8.80994492,135.96,135.93,7.35672772]
[1764081455021,3.34,135.97,135.94,0.67]
[1764081455322,3.34,135.97,135.94,11.13494207]
[1764081455718,0.66,136.03,135.95,11.13494207]
[1764081455908,13.80494207,136.03,135.97,10.46494207]
[1764081456109,8.80994492,136.02,135.97,10.46494207]
[1764081456318,19.27488699,136.02,135.96,26.77380607]
[1764081456617,19.27488699,136.02,135.96,52.51655786]
[1764081456921,8.80994492,136.02,135.96,53.18655786]
[1764081457222,8.80994492,136.02,135.96,42.72161579]
[1764081457425,8.80994492,135.99,135.96,7.35499069]
[1764081457619,8.80994492,136.01,135.96,26.41275179]
[1764081458015,8.80994492,136.0,135.96,25.74275179]
[1764081458210,8.80994492,136.0,135.96,26.41275179]
[1764081458410,19.93488699,136.0,135.94,46.06441951]
[1764081458721,19.27488699,136.0,135.94,56.52936158]
[1764081459222,19.27488699,136.0,135.94,53.18936158]
[1764081459403,19.27488699,136.0,135.95,0.67]
[1764081459595,8.80994492,136.01,135.95,11.13494207]
[1764081459800,8.80994492,136.01,135.96,10.46494207]
[1764081460118,8.80994492,136.01,135.97,0.67]
[1764081460510,8.80994492,136.01,135.98,25.73907927]
[1764081461114,8.80994492,136.01,135.97,8.02440637]
[1764081461312,8.80994492,136.01,135.97,7.35440637]
[1764081461509,12.14994492,136.02,135.98,0.67]